fUST/lending_fUST_20260219
["ID","MTS","AMOUNT","RATE_DAILY","PERIOD"]
[405948408,1771437039328,-976.74,0.00032876,19]
[405948409,1771437039337,-3958.99,0.00032876,19]
[405948410,1771437039346,-500.0,0.00032876,19]
[405948411,1771437039355,-540.81184808,0.00032876,19]
[405948412,1771437039364,-500.0,0.00032876,2]
[405948413,1771437039373,-782.86,0.00032876,19]
[405948414,1771437039382,-37960.44786772,0.000329,14]
[405948415,1771437039520,-687.33916467,0.000329,14]
[405948416,1771437039531,-99543.01225159,0.000329,14]
[405948470,1771437040739,-152.66298842,0.0002,2]
[405948472,1771437040749,-211.85222843,0.000329,14]
[405949052,1771437046359,-5366.47395168,0.00025407,7]
[405949054,1771437046370,-1497.07629061,0.00025407,7]
[405949056,1771437046380,-13577.10048462,0.00025507,7]
[405949058,1771437046389,-18052.80064612,0.00025607,7]
[405949060,1771437046399,-3211.35797495,0.00025707,7]
[405949657,1771437700657,-168.42164587,0.00013273,2]
[405949658,1771437700684,-608.0,0.00013273,2]
[405949659,1771437736390,-1071.14461191,0.0001763,2]
[405949660,1771437765742,-276.42164587,0.00013273,2]
[405949661,1771437765756,-223.57835413,0.00013273,2]
[405949662,1771437765768,-250.0,0.00016939,2]
[405949663,1771437765779,-26.42164587,0.0001763,2]
[405949721,1771438232664,-2443.73297094,0.0001275,2]
[405949722,1771438232676,-2556.26702906,0.0001275,2]
[405949723,1771438232686,-3073.25413733,0.00012879,2]
[405949724,1771438232695,-500.0,0.00013273,2]
[405949725,1771438232704,-500.0,0.00013273,2]
[405949726,1771438232713,-293.82429024,0.00013697,2]
[405949727,1771438232722,-500.0,0.00013698,2]
[405949728,1771438232731,-378.62895726,0.00013699,2]
[405949729,1771438232742,-121.37104274,0.00013699,2]
[405949730,1771438232751,-1000.0,0.00013821,2]
[405949731,1771438232762,-500.0,0.00013821,2]
[405949732,1771438232771,-515.92331516,0.00013972,2]
[405949733,1771438232780,-1624.62941363,0.00014175,2]
[405949734,1771438232794,-1000.0,0.00014247,2]
[405949735,1771438232804,-1161.25131429,0.00014368,2]
[405949744,1771438238611,-338.74868571,0.00014368,2]
[405949745,1771438238621,-1500.0,0.00014795,2]
[405949746,1771438238631,-2000.0,0.00014916,2]
[405949747,1771438238641,-1316.73612298,0.00015342,2]
[405949778,1771438240822,-416.82871599,0.00015342,2]
[405949780,1771438240834,-266.43516103,0.00015342,2]
[405949782,1771438240843,-264.06244173,0.00015467,2]
[405949784,1771438240854,-314.50869596,0.00015467,2]
[405950209,1771438245073,-2520.6876897,0.00015467,2]
[405950211,1771438245083,-3163.3731496,0.00016759,2]
[405950213,1771438245092,-1189.10299522,0.00017261,2]
[405950301,1771438245969,-658.46326248,0.00017261,2]
[405950303,1771438245980,-6135.473698,0.00017377,2]
[405950305,1771438245989,-151.0381072,0.00017808,2]
[405950307,1771438245998,-150.8643577,0.00017808,2]
[405950309,1771438246008,-500.0,0.00018003,2]
[405950311,1771438246018,-3355.71611659,0.00018052,2]
[405950315,1771438246028,-1403.2137927,0.00018109,2]
[405950316,1771438246037,-500.0,0.00018216,2]
[405950319,1771438246047,-500.0,0.0001824,2]
[405950320,1771438246057,-905.48004875,0.00018516,2]
[405950322,1771438246066,-743.5267485,0.0001854,2]
[405950324,1771438246076,-500.0,0.00018551,2]
[405950327,1771438246085,-977.09434916,0.00018992,2]
[405950330,1771438246094,-500.0,0.00019206,2]
[405950332,1771438246103,-3467.56851192,0.00019344,2]
[405950375,1771438246523,-144.604894,0.00019344,2]
[405950377,1771438246532,-168.77,0.000194,2]
[405950379,1771438246541,-500.0,0.00019573,2]
[405950381,1771438246551,-169.303334,0.0001986,2]
[405950383,1771438246561,-500.0,0.00019912,2]
[405950385,1771438246570,-500.0,0.00019926,2]
[405950387,1771438246579,-500.0,0.00019937,2]
[405950389,1771438246588,-500.0,0.00020089,2]
[405950391,1771438246598,-531.69052325,0.00020636,2]
[405950900,1771439431595,-217.17623252,9.606e-05,2]
[405950902,1771439431605,-250.18951943,0.0001,2]
[405950903,1771439431616,-500.0,0.00013273,2]
[405950905,1771439431625,-2377.43424805,0.000135,2]
[405950907,1771439431636,-306.70174738,0.000135,2]
[405950909,1771439431648,-1819.25226219,0.000135,2]
[405950911,1771439431658,-1200.0,0.00013697,2]
[405950913,1771439431667,-300.0,0.00013698,2]
[405950914,1771439431676,-185.05396431,0.00013698,2]
[405950916,1771439431688,-114.94603569,0.00013698,2]
[405950918,1771439431697,-300.0,0.00013698,2]
[405950920,1771439431706,-300.0,0.00013698,2]
[405950922,1771439431717,-190.16991708,0.00013699,2]
[405950924,1771439431729,-251.92612292,0.00013699,2]
[405950926,1771439431739,-500.0,0.00013699,2]
[405950928,1771439431749,-482.83557171,0.00013821,2]
[405950931,1771439431771,-517.16442829,0.00013821,2]
[405950934,1771439431784,-822.43196936,0.00014175,2]
[405950935,1771439431793,-629.69540114,0.00014247,2]
[405950938,1771439431804,-516.12947213,0.00014367,2]
[405950940,1771439431816,-500.0,0.00014367,2]
[405950942,1771439431828,-500.0,0.00014367,2]
[405950944,1771439431840,-500.0,0.00014367,2]
[405950947,1771439431852,-500.0,0.00014367,2]
[405950949,1771439431865,-500.0,0.00014367,2]
[405950951,1771439431874,-500.0,0.00014367,2]
[405950953,1771439431884,-500.0,0.00014367,2]
[405950955,1771439431896,-500.0,0.00014367,2]
[405950956,1771439431908,-500.0,0.00014367,2]
[405950957,1771439431920,-500.0,0.00014367,2]
[405950958,1771439431931,-500.0,0.00014367,2]
[405950959,1771439431943,-500.0,0.00014367,2]
[405950960,1771439431956,-500.0,0.00014367,2]
[405950961,1771439431969,-500.0,0.00014367,2]
[405950962,1771439431980,-323.07541852,0.00014367,2]
[405950963,1771439431993,-500.0,0.00014367,2]
[405950964,1771439432005,-500.0,0.00014367,2]
[405950965,1771439432017,-500.0,0.00014367,2]
[405950966,1771439432035,-500.0,0.00014367,2]
[405950967,1771439432047,-500.0,0.00014367,2]
[405950968,1771439432058,-300.1448133,0.00014367,2]
[405950969,1771439432072,-199.8551867,0.00014367,2]
[405950970,1771439432084,-500.0,0.00014367,2]
[405950971,1771439432096,-500.0,0.00014367,2]
[405950972,1771439432107,-382.01955087,0.00014367,2]
[405950973,1771439432118,-500.0,0.00014367,2]
[405950974,1771439432130,-500.0,0.00014367,2]
[405950975,1771439432142,-500.0,0.00014367,2]
[405950976,1771439432153,-500.0,0.00014367,2]
[405950977,1771439432164,-500.0,0.00014367,2]
[405950978,1771439432175,-1500.0,0.00014368,2]
[405950980,1771439432185,-583.86880523,0.00014916,2]
[405950981,1771439432194,-519.66290764,0.00014916,2]
[405950983,1771439432206,-321.3239246,0.00014916,2]
[405950985,1771439432221,-577.1292709,0.00014916,2]
[405950987,1771439432233,-500.0,0.00014916,2]
[405950989,1771439432243,-500.0,0.00014916,2]
[405950992,1771439432254,-500.0,0.00014916,2]
[405950994,1771439432265,-2000.0,0.00014916,2]
[405950996,1771439432279,-420.0,0.00015011,2]
[405950998,1771439432293,-349.0,0.00015067,2]
[405951000,1771439432305,-1372.25425284,0.00015351,2]
[405951015,1771439437706,-180.72109064,0.00015351,2]
[405951016,1771439437717,-351.45383006,0.00016229,2]
[405951017,1771439437727,-1692.0100592,0.0001623,2]
[405951018,1771439437742,-858.3960071,0.0001623,2]
[405951019,1771439437754,-1811.960521,0.0001623,2]
[405951020,1771439437767,-251.3032876,0.0001623,2]
[405951021,1771439437779,-2283.5187176,0.00016527,2]
[405951022,1771439437790,-2148.24369044,0.000176,2]
[405951023,1771439437802,-2391.439898,0.00017702,2]
[405951024,1771439437814,-2294.99405905,0.000179,2]
[405951025,1771439437825,-239.03,0.0001799,3]
[405951026,1771439437837,-717.11,0.0001799,3]
[405951028,1771439437849,-51779.81883934,0.00018,2]
[405951030,1771439437862,-43393.2456948,0.00018,2]
[405951033,1771439437876,-3096.06153313,0.00018,2]
[405951064,1771439444872,-400.0,0.00018,2]
[405951065,1771439444927,-4770.81809725,0.00018,2]
[405951075,1771439445765,-5698.3045271,0.00018,2]
[405951076,1771439445779,-14225.09260348,0.00018,2]
[405951077,1771439445792,-402.26712187,0.00018,2]
[405951078,1771439445802,-1811.960521,0.0001819,2]
[405951079,1771439445812,-1692.0100592,0.00018305,2]
[405951080,1771439445821,-743.5267485,0.00018531,2]
[405951081,1771439445831,-251.3032876,0.00018818,2]
[405951082,1771439445840,-2856.33113595,0.00018878,2]
[405951083,1771439445849,-858.3960071,0.00018897,2]
[405951084,1771439445857,-500.0,0.00019156,2]
[405951085,1771439445866,-478.06,0.0001936,3]
[405951087,1771439445876,-68445.05636887,0.0002,2]
[405951088,1771439445887,-1702.76985646,0.0002,2]
[405951089,1771439445897,-799.77880298,0.0002,2]
[405951091,1771439445908,-1052.39497169,0.0002,2]
[405951092,1771439445917,-1011.22103114,0.0002,2]
[405951093,1771439445926,-372.23,0.0002,2]
[405951094,1771439445935,-1567.32728075,0.00020054,2]
[405951150,1771440631774,-969.87175591,0.0001272,2]
[405951151,1771440631784,-150.0,0.00012913,2]
[405951152,1771440631795,-500.0,0.00013273,2]
[405951153,1771440631805,-980.12824409,0.00013821,2]
[405951154,1771440631818,-19.87175591,0.00013821,2]
[405951155,1771440631829,-1634.67985297,0.00014368,2]
[405951156,1771440631840,-300.0,0.00014814,2]
[405951157,1771440631852,-246.01768104,0.00014815,2]
[405951158,1771440631863,-205.67700317,0.00014815,2]
[405951159,1771440631873,-343.75370691,0.00014815,2]
[405951161,1771440631887,-156.24629309,0.00014815,2]
[405951162,1771440631899,-500.0,0.00014815,2]
[405951163,1771440631911,-21.83717643,0.00014815,2]
[405951164,1771440631925,-538.71496029,0.00014815,2]
[405951165,1771440631937,-500.0,0.00014815,2]
[405951166,1771440631948,-500.0,0.00014815,2]
[405951167,1771440631958,-207.52147223,0.00014815,2]
[405951174,1771440637921,-292.47852777,0.00014815,2]
[405951175,1771440637932,-500.0,0.00014815,2]
[405951176,1771440637943,-500.0,0.00014815,2]
[405951177,1771440637954,-500.0,0.00014815,2]
[405951178,1771440637965,-209.11328343,0.00014815,2]
[405951179,1771440637976,-369.23060206,0.00014815,2]
[405951180,1771440637987,-500.0,0.00014815,2]
[405951181,1771440637997,-500.0,0.00014815,2]
[405951182,1771440638008,-500.0,0.00014815,2]
[405951183,1771440638019,-500.0,0.00014815,2]
[405951184,1771440638030,-500.0,0.00014815,2]
[405951185,1771440638041,-500.0,0.00014815,2]
[405951186,1771440638052,-500.0,0.00014815,2]
[405951187,1771440638066,-500.0,0.00014815,2]
[405951188,1771440638077,-500.0,0.00014815,2]
[405951189,1771440638087,-500.0,0.00014815,2]
[405951190,1771440638098,-500.0,0.00014815,2]
[405951191,1771440638109,-500.0,0.00014815,2]
[405951192,1771440638120,-500.0,0.00014815,2]
[405951193,1771440638132,-500.0,0.00014815,2]
[405951194,1771440638142,-500.0,0.00014815,2]
[405951195,1771440638152,-500.0,0.00014815,2]
[405951196,1771440638164,-500.0,0.00014815,2]
[405951197,1771440638175,-500.0,0.00014815,2]
[405951198,1771440638185,-500.0,0.00014815,2]
[405951199,1771440638196,-500.0,0.00014815,2]
[405951200,1771440638207,-500.0,0.00014815,2]
[405951201,1771440638219,-500.0,0.00014815,2]
[405951202,1771440638230,-435.86389952,0.00014815,2]
[405951203,1771440638241,-500.0,0.00014815,2]
[405951204,1771440638253,-500.0,0.00014815,2]
[405951205,1771440638264,-500.0,0.00014815,2]
[405951206,1771440638276,-500.0,0.00014815,2]
[405951207,1771440638287,-500.0,0.00014815,2]
[405951208,1771440638298,-500.0,0.00014815,2]
[405951209,1771440638309,-500.0,0.00014815,2]
[405951210,1771440638320,-500.0,0.00014815,2]
[405951211,1771440638330,-500.0,0.00014815,2]
[405951212,1771440638341,-500.0,0.00014815,2]
[405951213,1771440638350,-500.0,0.00014815,2]
[405951214,1771440638359,-500.0,0.00014815,2]
[405951215,1771440638476,-500.0,0.00014815,2]
[405951216,1771440638532,-500.0,0.00014815,2]
[405951217,1771440638542,-500.0,0.00014815,2]
[405951218,1771440638555,-500.0,0.00014815,2]
[405951219,1771440638566,-500.0,0.00014815,2]
[405951220,1771440638575,-500.0,0.00014815,2]
[405951221,1771440638584,-500.0,0.00014815,2]
[405951222,1771440638594,-500.0,0.00014815,2]
[405951223,1771440638604,-500.0,0.00014815,2]
[405951224,1771440638613,-500.0,0.00014815,2]
[405951225,1771440638624,-500.0,0.00014815,2]
[405951226,1771440638634,-500.0,0.00014815,2]
[405951227,1771440638644,-500.0,0.00014815,2]
[405951228,1771440638653,-500.0,0.00014815,2]
[405951229,1771440638662,-500.0,0.00014815,2]
[405951230,1771440638672,-500.0,0.00014815,2]
[405951231,1771440638682,-500.0,0.00014815,2]
[405951232,1771440638692,-500.0,0.00014815,2]
[405951233,1771440638701,-500.0,0.00014815,2]
[405951234,1771440638711,-500.0,0.00014815,2]
[405951235,1771440638720,-500.0,0.00014815,2]
[405951236,1771440638730,-500.0,0.00014815,2]
[405951237,1771440638740,-500.0,0.00014815,2]
[405951238,1771440638750,-500.0,0.00014815,2]
[405951239,1771440638760,-500.0,0.00014815,2]
[405951240,1771440638770,-500.0,0.00014815,2]
[405951241,1771440638779,-500.0,0.00014815,2]
[405951242,1771440638788,-500.0,0.00014815,2]
[405951243,1771440638798,-500.0,0.00014815,2]
[405951244,1771440638808,-174.12363836,0.00014815,2]
[405951245,1771440638818,-500.0,0.00014815,2]
[405951246,1771440638828,-500.0,0.00014815,2]
[405951247,1771440638837,-500.0,0.00014815,2]
[405951248,1771440638847,-500.0,0.00014815,2]
[405951249,1771440638857,-500.0,0.00014815,2]
[405951250,1771440638866,-500.0,0.00014815,2]
[405951251,1771440638876,-500.0,0.00014815,2]
[405951252,1771440638885,-500.0,0.00014815,2]
[405951253,1771440638895,-489.68153534,0.00014815,2]
[405951254,1771440638905,-500.0,0.00014815,2]
[405951255,1771440638915,-500.0,0.00014815,2]
[405951256,1771440638925,-500.0,0.00014815,2]
[405951257,1771440638935,-500.0,0.00014815,2]
[405951258,1771440638945,-500.0,0.00014815,2]
[405951259,1771440638954,-500.0,0.00014815,2]
[405951260,1771440638964,-500.0,0.00014815,2]
[405951261,1771440638974,-500.0,0.00014815,2]
[405951262,1771440638983,-500.0,0.00014815,2]
[405951263,1771440638992,-500.0,0.00014815,2]
[405951264,1771440639002,-180.1445925,0.00014815,2]
[405951265,1771440639094,-319.8554075,0.00014815,2]
[405951266,1771440639103,-325.91182834,0.00014815,2]
[405951275,1771440640238,-174.08817166,0.00014815,2]
[405951276,1771440640248,-500.0,0.00014815,2]
[405951277,1771440640259,-125.80662169,0.00014815,2]
[405951300,1771440645651,-374.19337831,0.00014815,2]
[405951301,1771440645661,-500.0,0.00014815,2]
[405951302,1771440645671,-500.0,0.00014815,2]
[405951303,1771440645681,-500.0,0.00014815,2]
[405951304,1771440645691,-500.0,0.00014816,2]
[405951305,1771440645702,-500.0,0.00014816,2]
[405951306,1771440645713,-178.77672363,0.00014816,2]
[405951312,1771440646031,-321.22327637,0.00014816,2]
[405951313,1771440646041,-600.0,0.00014816,2]
[405951314,1771440646050,-500.0,0.00014816,2]
[405951315,1771440646060,-500.0,0.00014816,2]
[405951316,1771440646070,-500.0,0.00014816,2]
[405951317,1771440646080,-500.0,0.00014816,2]
[405951318,1771440646089,-4756.850889,0.00014817,2]
[405951319,1771440646099,-177.0,0.00014913,2]
[405951320,1771440646108,-300.0,0.00016431,2]
[405951321,1771440646118,-1249.12948413,0.00016433,2]
[405951322,1771440646127,-204.0,0.00016913,2]
[405951323,1771440646136,-2348.25896837,0.00017766,2]
[405951324,1771440646145,-500.0,0.00018082,2]
[405951325,1771440646154,-846.0050296,0.00018461,2]
[405951326,1771440646163,-905.9802605,0.00018461,2]
[405951328,1771440646173,-429.1980035,0.00018461,2]
[405951330,1771440646182,-167.5355251,0.00018461,2]
[405951331,1771440646190,-231.0,0.00018913,2]
[405951332,1771440646199,-189.9771263,0.0001893,2]
[405951333,1771440646208,-1699.0587045,0.00019041,2]
[405951334,1771440646217,-2396.04720671,0.00019098,2]
[405951335,1771440646226,-743.5267485,0.0001983,2]
[405951336,1771440646235,-152.66298842,0.0002,2]
[405951337,1771440646245,-500.0,0.00020006,2]
[405951338,1771440646254,-159.96977553,0.00020343,2]
[405951339,1771440646263,-639.87910213,0.00020343,2]
[405951340,1771440646273,-1439.7279798,0.00020343,2]
[405951341,1771440646282,-2559.51640853,0.00020343,2]
[405951342,1771440646292,-154.57727776,0.00020343,2]
[405951343,1771440646301,-618.30911104,0.00020343,2]
[405951344,1771440646309,-1391.19549983,0.00020343,2]
[405951345,1771440646318,-2473.23644414,0.00020343,2]
[405951346,1771440646328,-3864.43194398,0.00020343,2]
[405951347,1771440646338,-2539.41192203,0.00020431,2]
[405951348,1771440646347,-442.09604,0.00020548,2]
[405951349,1771440646356,-1856.91,0.00020643,10]
[405951350,1771440646365,-450.22533252,0.00020653,2]
[405951351,1771440646375,-710.4097181,0.00020653,2]
[405951352,1771440646384,-1278.73749257,0.00020653,2]
[405951353,1771440646394,-2273.31109791,0.00020653,2]
[405951354,1771440646404,-905.9802605,0.00020868,2]
[405951355,1771440646415,-846.0050296,0.00020874,2]
[405951356,1771440646424,-258.0,0.00020913,2]
[405951357,1771440646434,-810.40559853,0.00020975,2]
[405951358,1771440646445,-150.0,0.00021,2]
[405951359,1771440646454,-500.0,0.00021078,2]
[405951360,1771440646467,-732.0,0.00021218,10]
[405951361,1771440646477,-429.1980035,0.00021336,2]
[405951362,1771440646486,-247.0,0.00021369,20]
[405951363,1771440646496,-500.0,0.0002137,2]
[405951364,1771440646505,-739.25377653,0.00021644,2]
[405951365,1771440646514,-3179.69,0.00021754,10]
[405951366,1771440646523,-500.0,0.00021762,2]
[405951367,1771440646533,-2730.5648758,0.00021764,2]
[405951368,1771440646543,-151.0,0.000218,3]
[405951369,1771440646552,-855.36187795,0.00021811,2]
[405951370,1771440646565,-150.0,0.00021918,2]
[405951371,1771440646579,-250.0,0.00022466,2]
[405951372,1771440646589,-167.5355251,0.00022722,2]
[405951373,1771440646598,-285.0,0.00022913,2]
[405951374,1771440646607,-350.0,0.00023014,2]
[405951375,1771440646616,-2921.71782956,0.00023096,2]
[405951376,1771440646625,-151.0,0.000232,6]
[405951377,1771440646635,-905.9802605,0.00023275,2]
[405951378,1771440646647,-846.0050296,0.00023286,2]
[405951379,1771440646656,-153.49241044,0.00023407,2]
[405951380,1771440646665,-444.54288906,0.00023562,2]
[405951381,1771440646675,-169.303334,0.0002404,2]
[405951382,1771440646684,-151.02430359,0.00024061,2]
[405951383,1771440646695,-500.0,0.00024147,2]
[405951384,1771440646706,-838.33912284,0.00024167,2]
[405951385,1771440646716,-429.1980035,0.0002421,2]
[405951386,1771440646726,-3112.87078332,0.00024429,4]
[405951387,1771440646736,-510.8559,0.00024592,2]
[405951388,1771440646745,-510.8559,0.00024592,3]
[405951389,1771440646755,-150.1581,0.00024592,4]
[405951390,1771440646765,-151.0,0.000246,8]
[405951391,1771440646774,-150.0,0.00024658,2]
[405951392,1771440646783,-9963.2458013,0.000249,2]
[405951393,1771440646792,-312.0,0.00024913,2]
[405951394,1771440646804,-2687.9531178,0.00025,2]
[405951395,1771440646814,-10364.0,0.00025,2]
[405951396,1771440646825,-150.0,0.00025,2]
[405951397,1771440646835,-500.0,0.00025,2]
[405951398,1771440646844,-763.83143939,0.00025,2]
[405951399,1771440646853,-301.51879046,0.00025,2]
[405951400,1771440646862,-500.0,0.00025043,7]
[405951401,1771440646871,-500.0,0.00025147,7]
[405951402,1771440646881,-250.0,0.00025205,2]
[405951403,1771440646890,-9963.2458013,0.0002527,2]
[405951404,1771440646900,-179.87408455,0.0002528,2]
[405951405,1771440646909,-1514.02553383,0.00025439,2]
[405951406,1771440646918,-900.0,0.00025469,3]
[405951407,1771440646928,-1000.0,0.000255,2]
[405951408,1771440646937,-905.9802605,0.00025681,2]
[405951409,1771440646946,-846.0050296,0.00025699,2]
[405951410,1771440646956,-350.0,0.00025753,2]
[405951411,1771440646965,-3304.02373709,0.00025762,7]
[405951412,1771440646975,-169.74,0.000258,7]
[405951413,1771440646984,-29889.7374039,0.0002599,2]
[405951414,1771440646993,-151.0,0.00026,18]
[405951415,1771440647002,-532.41714523,0.00026,2]
[405951416,1771440647012,-1649.53164528,0.00026,30]
[405951417,1771440647024,-19900.0,0.00026,2]
[405951418,1771440647033,-195.5836155,0.0002616,2]
[405951419,1771440647042,-406.88410179,0.00026301,2]
[405951420,1771440647051,-600.0,0.00026322,30]
[405951421,1771440647061,-151.0,0.000266,19]
[405951422,1771440647071,-339.0,0.00026913,2]
[405951423,1771440647080,-167.5355251,0.00026984,2]
[405951424,1771440647089,-429.1980035,0.00027085,2]
[405951425,1771440647100,-3542.96492929,0.00027094,7]
[405951426,1771440647109,-150.0,0.0002739,2]
[405951427,1771440647118,-151.0,0.000274,12]
[405951428,1771440647127,-9963.2458013,0.0002749,2]
[405951429,1771440647136,-46183.90825201,0.000275,2]
[405951430,1771440647146,-335.01,0.000275,14]
[405951431,1771440647155,-19926.4916026,0.0002798,2]
[405951432,1771440647164,-29889.7374039,0.0002819,2]
[405951433,1771440647174,-151.0,0.000282,12]
[405951434,1771440647183,-3638.54140617,0.00028427,7]
[405951435,1771440647192,-743.5267485,0.000285,7]
[405951436,1771440647202,-288.19953183,0.0002876,2]
[405951437,1771440647212,-487.0,0.0002876,2]
[405951438,1771440647222,-487.0,0.0002876,2]
[405951439,1771440647231,-487.0,0.0002876,2]
[405951440,1771440647240,-487.0,0.0002876,2]
[405951441,1771440647250,-945.02,0.0002876,2]
[405951442,1771440647262,-151.0,0.000288,11]
[405951443,1771440647272,-634.08,0.0002885,2]
[405951444,1771440647282,-159.6108261,0.00028913,2]
[405951445,1771440647292,-720.0,0.00028954,30]
[405951446,1771440647302,-426.0,0.00028972,2]
[405951447,1771440647311,-2173.0,0.00028972,2]
[405951448,1771440647322,-821.13,0.00028972,2]
[405951449,1771440647331,-193.076,0.00028972,2]
[405951450,1771440647340,-93721.47190642,0.0002899,2]
[405951468,1771441300594,-237.79054316,0.00013139,2]
[405951479,1771441804971,181.34,5e-05,2]
[405951480,1771441805524,181.34,5e-05,2]
[405951481,1771441806068,181.34,5e-05,2]
[405951482,1771441806870,181.34,5e-05,2]
[405951483,1771441807448,181.34,5e-05,2]
[405951511,1771441832033,-181.34,5.1e-05,2]
[405951513,1771441832043,-93.09075317,5.1e-05,2]
[405951526,1771441838152,-88.24924683,5.1e-05,2]
[405951528,1771441838162,-181.34,5.1e-05,2]
[405951529,1771441838171,-181.34,5.1e-05,2]
[405951530,1771441838181,-181.34,5.1e-05,2]
[405951531,1771441838190,-181.34,5.1e-05,2]
[405951532,1771441838200,-181.34,5.1e-05,2]
[405951533,1771441838210,-181.34,5.1e-05,2]
[405951534,1771441838219,-181.34,5.1e-05,2]
[405951535,1771441838229,-181.34,5.1e-05,2]
[405951536,1771441838239,-181.34,5.2e-05,2]
[405951537,1771441838248,-181.34,5.2e-05,2]
[405951538,1771441838258,-181.34,5.2e-05,2]
[405951539,1771441838268,-181.34,5.2e-05,2]
[405951540,1771441838278,-181.34,5.2e-05,2]
[405951541,1771441838288,-181.34,5.2e-05,2]
[405951542,1771441838298,-181.34,5.2e-05,2]
[405951543,1771441838310,-181.34,5.2e-05,2]
[405951544,1771441838320,-181.34,5.2e-05,2]
[405951545,1771441838329,-181.34,5.2e-05,2]
[405951546,1771441838339,-300.0,5.201e-05,2]
[405951547,1771441838350,-300.0,5.201e-05,2]
[405951548,1771441838359,-300.0,5.201e-05,2]
[405951549,1771441838369,-300.0,5.201e-05,2]
[405951550,1771441838380,-300.0,5.201e-05,2]
[405951551,1771441838389,-300.0,5.201e-05,2]
[405951552,1771441838399,-300.0,5.201e-05,2]
[405951553,1771441838408,-300.0,5.201e-05,2]
[405951554,1771441838418,-300.0,5.201e-05,2]
[405951555,1771441838427,-300.0,5.201e-05,2]
[405951556,1771441838437,-300.0,5.201e-05,2]
[405951557,1771441838446,-300.0,5.201e-05,2]
[405951558,1771441838456,-300.0,5.201e-05,2]
[405951559,1771441838465,-300.0,5.201e-05,2]
[405951560,1771441838475,-300.0,5.201e-05,2]
[405951561,1771441838484,-181.34,5.3e-05,2]
[405951562,1771441838493,-181.34,5.3e-05,2]
[405951563,1771441838503,-181.34,5.3e-05,2]
[405951564,1771441838513,-181.34,5.3e-05,2]
[405951565,1771441838522,-181.34,5.3e-05,2]
[405951566,1771441838531,-181.34,5.3e-05,2]
[405951567,1771441838541,-181.34,5.3e-05,2]
[405951568,1771441838551,-181.34,5.3e-05,2]
[405951569,1771441838560,-181.34,5.3e-05,2]
[405951570,1771441838569,-181.34,5.3e-05,2]
[405951571,1771441838579,-600.0,5.304e-05,2]
[405951572,1771441838590,-181.34,5.4e-05,2]
[405951573,1771441838599,-181.34,5.4e-05,2]
[405951574,1771441838609,-181.34,5.4e-05,2]
[405951575,1771441838619,-181.34,5.4e-05,2]
[405951576,1771441838628,-181.34,5.4e-05,2]
[405951577,1771441838637,-181.34,5.4e-05,2]
[405951578,1771441838647,-181.34,5.4e-05,2]
[405951579,1771441838657,-181.34,5.4e-05,2]
[405951580,1771441838666,-181.34,5.4e-05,2]
[405951581,1771441838676,-181.34,5.4e-05,2]
[405951582,1771441838685,-181.34,5.5e-05,2]
[405951583,1771441838695,-181.34,5.5e-05,2]
[405951584,1771441838704,-181.34,5.5e-05,2]
[405951585,1771441838713,-181.34,5.5e-05,2]
[405951586,1771441838723,-181.34,5.5e-05,2]
[405951587,1771441838733,-720.0,5.834e-05,2]
[405951588,1771441838742,-864.0,6.418e-05,2]
[405951589,1771441838753,-1000.0,7.06e-05,2]
[405951590,1771441838763,-1000.0,7.766e-05,2]
[405951591,1771441838773,-244.0,7.766e-05,2]